Cogmind - Beta 14 @@@ ROGUE MODE // 2024.10.22 @ 14:52:18 Player: delta76 Result: Destroyed by G-34 Mercenary with Small Laser Performance ------------- Evolutions (1) 500 Regions Visited (2) 400 Robots Destroyed (23) 115 Value Destroyed (576) 576 Prototype IDs (1) 20 Alien Tech Used (0) 0 Bonus (0) 0 TOTAL SCORE: 1611 Bonus ------- None Cogmind --------- Core Integrity 0/400 Matter 300/300 Energy 89/100 System Corruption 0% Temperature Cool (6) Movement Core (50) Location -9/Materials Parts ------- > --- POWER (1) -------- (None) > --- PROPULSION (3) --- (None) > --- UTILITY (3) ------ Weight Redist. System > --- WEAPON (2) ------- Mace > --- INVENTORY (5) ---- Small Storage Unit Light Armor Plating Advanced Beam Cannon Advanced Beam Cannon Peak State ------------ > --- POWER ------------ Ion Engine > --- PROPULSION ------- Light Treads Light Treads Armored Wheel > --- UTILITY ---------- Heat Sink Weight Redist. System Core Shielding > --- WEAPON ----------- Particle Gun Mace > --- INVENTORY -------- Small Storage Unit Light Armor Plating Advanced Beam Cannon Advanced Beam Cannon [Rating: 13] Favorites ----------- Power Light Ion Engine Engine Light Ion Engine Propulsion Light Treads Treads Light Treads Leg Aluminum Leg Wheel Armored Wheel Hover Unit Hover Unit Utility Small Storage Unit Device Weight Redist. System Storage Small Storage Unit Processor Signal Interpreter Protection Core Shielding Weapon Light Assault Rifle Energy Gun Small Laser Energy Cannon Advanced Beam Cannon Ballistic Gun Light Assault Rifle Impact Weapon Mace Special Melee Weapon Datajack Build | -11 -10 -9 ------- Run | Yrd Mat Mat Slots Evolved 2 | . . 2 Power . | . . . Propulsion 1 | . . 1 Utility 1 | . . 1 Weapon . | . . . Parts Attached 32 | 6 6 20 Power 6 | 1 . 5 Engine 6 | 1 . 5 Core . | . . . Reactor . | . . . Propulsion 10 | 2 2 6 Treads 7 | 2 1 4 Leg 1 | . . 1 Wheel 1 | . . 1 Hover 1 | . 1 . Flight . | . . . Utility 7 | 1 2 4 Device 3 | . . 3 Storage 1 | 1 . . Processor 2 | . 2 . Hackware . | . . . Protection 1 | . . 1 Artifact . | . . . Weapon 9 | 2 2 5 Energy Gun 3 | 1 . 2 Energy Cannon 1 | . . 1 Ballistic Gun 3 | 1 2 . Ballistic Cannon . | . . . Launcher . | . . . Special Weapon . | . . . Impact Weapon 1 | . . 1 Slashing Weapon . | . . . Piercing Weapon . | . . . Special Melee Weapon 1 | . . 1 Unidentified Prototypes 1 | . . 1 Parts Lost 16 | . . 16 Power 4 | . . 4 Propulsion 6 | . . 6 Utility 2 | . . 2 Weapon 4 | . . 4 Highest Loss Streak 7 | . . 7 To Critical Strikes . | . . . Average Slot Usage (%) 84 | . 92 79 Engine 11 | . 14 9 Treads 19 | . 20 18 Hover 3 | . 7 . Device 7 | . . 11 Storage 2 | . 7 . Processor 11 | . 14 9 Protection 6 | . . 10 Energy Gun 4 | . 1 6 Energy Cannon 1 | . . 2 Ballistic Gun 14 | . 26 6 Impact Weapon 1 | . . 2 Peak Build Rating 13 | 6 8 13 Average Rating 6 | 5 7 9 On Entrance 4 | . 6 8 Naked Turns . | . . . Heaviest Build 14 | 10 11 14 Greatest Support 60 | 40 40 60 Greatest Overweight (x) 2 | . . 2 Average Overweight (x) . | . . . Largest Inventory Capacity 8 | 8 8 5 Average Capacity 7 | 7 6 5 Most Carried 5 | 3 4 5 Average Carried . | . 2 3 Final Capacity 8 | 8 5 5 Final Carried 4 | . 4 4 Class Distribution -------------------- 90% | Mutant 9% | Scavenger-Mutant Dominant Class ---------------- Mutant | -10/Materials Scavenger-Mutant | -9/Materials Resources | -11 -10 -9 ----------- Run | Yrd Mat Mat Matter Collected 579 | 215 20 344 Remotely . | . . . Salvage Created 665 | 6 20 639 Parts 44 | . 4 40 Haulers Intercepted 1 | . . 1 Recyclers Shooed 1 | . . 1 Parts Field Recycled . | . . . Retrieved Matter . | . . . Parts Self-Destructed . | . . . Prevented . | . . . Kills | -11 -10 -9 ------- Run | Yrd Mat Mat Combat Hostiles Destroyed 16 | . . 16 Melee 2 | . . 2 Guns 11 | . . 11 Cannons 1 | . . 1 Classes Destroyed 7 | 1 1 5 Tunneler 2 | 2 . . Hauler 1 | . . 1 Operator 1 | . . 1 Watcher 3 | . 1 2 Swarmer 4 | . . 4 Grunt 10 | . . 10 Sentry 2 | . . 2 Best Kill Streak 4 | 2 1 4 Combat Bots Only 4 | . . 4 Max Kills in Single Turn 2 | 1 1 2 Gunslinging 1 | . . 1 Exploded . | . . . Melee 1 | . . 1 Uniques/NPCs Destroyed . | . . . Combat | -11 -10 -9 -------- Run | Yrd Mat Mat Hostile Shots Fired 212 | . . 212 Missed 63 | . . 63 Damage Taken 1812 | . . 1812 Core 403 | . . 403 Absorbed by Shields . | . . . Redirected to Shielding 48 | . . 48 Core Remaining (%) 100 | 100 100 . Volleys Fired 57 | . 1 56 Largest 2 | . 2 2 Hottest 133 | . 40 133 Shots Fired 93 | . 2 91 Gun 90 | . 2 88 Cannon 3 | . . 3 Launcher . | . . . Special . | . . . Kinetic 67 | . 2 65 Thermal 26 | . . 26 Explosive . | . . . Electromagnetic . | . . . Robot Hit Streak 7 | . 1 7 Robot Miss Streak 4 | . . 4 Penetration Max . | . . . Secondary Targets 1 | . . 1 Max Gunslinging Chain 1 | . . 1 Shots Hit Robots 67 | . 1 66 Core Hits 31 | . 1 30 Critical Kills . | . . . Critical Parts Destroyed 2 | . . 2 Critical Strikes 2 | . . 2 Smash 2 | . . 2 Melee Attacks 19 | . . 19 Impact 19 | . . 19 Slashing . | . . . Piercing . | . . . Sneak Attacks . | . . . Combat Hostiles . | . . . Follow-up Attacks . | . . . Damage Inflicted 1062 | 11 12 1039 Guns 631 | . 12 619 Cannons 41 | . . 41 Explosions . | . . . Melee 339 | . . 339 Ramming 51 | 11 . 40 Kinetic 375 | . 12 363 Thermal 297 | . . 297 Explosive . | . . . Electromagnetic . | . . . Impact 339 | . . 339 Slashing . | . . . Piercing . | . . . Highest Corruption . | . . . Average Corruption . | . . . Corruption Purged . | . . . Corruption Blocked . | . . . Overload Shots . | . . . Overflow Damage 44 | . . 44 Projectiles . | . . . Explosions . | . . . Melee 44 | . . 44 Knockbacks 1 | . . 1 Impact 1 | . . 1 Kinetic . | . . . Secondary . | . . . Self-Inflicted Damage 11 | . . 11 Shots . | . . . Rammed 18 | 2 . 16 Targets Rammed 22 | 4 . 18 Kicked . | . . . Crushed 4 | 2 . 2 Highest Temperature 66 | . . 66 Average Temperature 16 | . . 16 Received Heat Transfer 978 | . . 978 Siege Activations . | . . . Robots Corrupted 2 | . . 2 Combat Hostiles 2 | . . 2 Parts Fried 1 | . . 1 Impact Corruptions 3 | . . 3 Robots Melted . | . . . Combat Hostiles . | . . . Parts Melted 1 | . . 1 Heat Transferred 666 | . . 666 Parts Sabotaged . | . . . Parts Stolen . | . . . Parts Stripped . | . . . Power Chain Reactions . | . . . Alert | -11 -10 -9 ------- Run | Yrd Mat Mat Peak Influence 236 | 10 31 236 Initial . | . . . Average 17 | . 16 129 Maximum Alert Level 1 | . . 1 Low Security (%) 98 | 100 100 89 Level 1 1 | . . 10 Level 2 . | . . . Level 3 . | . . . Level 4 . | . . . Level 5 . | . . . High Security . | . . . Max Security . | . . . Squads Dispatched 3 | . . 3 Investigation 1 | . . 1 Extermination . | . . . Reinforcement 2 | . . 2 Assault . | . . . Garrison . | . . . Intercept . | . . . Searches Triggered . | . . . Construction Impeded . | . . . Haulers Reinforced . | . . . Active Scanning Responses . | . . . Cargo Convoy Interrupts . | . . . Stealth | -11 -10 -9 --------- Run | Yrd Mat Mat Distress Signals 2 | . . 2 Communications Jammed . | . . . Distress Signals . | . . . Times Spotted 25 | . 1 24 Peak Tracking Total 5 | . 1 5 Tactical Retreats 1 | . . 1 Traps | -11 -10 -9 ------- Run | Yrd Mat Mat Traps Triggered . | . . . Indirectly . | . . . Trap Hack Attempts . | . . . Triggered . | . . . Disarmed . | . . . Reprogrammed . | . . . Reused . | . . . Traps Extracted . | . . . Installed . | . . . Triggered . | . . . Machines | -11 -10 -9 ---------- Run | Yrd Mat Mat Machines Disabled . | . . . Max in Single Turn . | . . . Machines Repaired . | . . . Machines Dismantled . | . . . Machines Sabotaged . | . . . Overloaded Fab Kills . | . . . Hacking | -11 -10 -9 --------- Run | Yrd Mat Mat Machines Accessed 3 | . 2 1 Terminals 2 | . 2 . Fabricators . | . . . Repair Stations . | . . . Recycling Units 1 | . . 1 Scanalyzers . | . . . Garrison Access . | . . . Total Hacks 11 | . 5 6 Successful 8 | . 3 5 Failed 3 | . 2 1 Catastrophic . | . . . Database Lockouts . | . . . Manual 2 | . 2 . Terminals 5 | . 5 . Fabricators . | . . . Repair Stations . | . . . Recycling Units 6 | . . 6 Scanalyzers . | . . . Garrison Access . | . . . Terminal Hacks 3 | . 3 . Record 2 | . 2 . Part Schematic 1 | . 1 . Fabricator Hacks . | . . . Repair Station Hacks . | . . . Recycling Unit Hacks 5 | . . 5 Recycle Component 1 | . . 1 Process 2 | . . 2 Report Inventory 1 | . . 1 Retrieve Matter 1 | . . 1 Scanalyzer . | . . . Garrison Access Hacks . | . . . Unauthorized Hacks . | . . . Terminals . | . . . Fabricators . | . . . Repair Stations . | . . . Recycling Units . | . . . Scanalyzers . | . . . Garrison Access . | . . . Data Cores Recovered . | . . . Used . | . . . Hacking Detections 3 | . 2 1 Full Trace Events 3 | . 2 1 Feedback Events . | . . . Feedback Blocked . | . . . Robot Schematics Acquired . | . . . Robots Built . | . . . Authchips . | . . . Time . | . . . Total Robot Build Rating . | . . . Part Schematics Acquired 1 | . 1 . Parts Built . | . . . Authchips . | . . . Time . | . . . Total Part Build Rating . | . . . Parts Repaired . | . . . Time . | . . . Parts Recycled 1 | . . 1 Recycled Matter 305 | . . 305 Retrieved Matter 305 | . . 305 Retrieved Components . | . . . Parts Scanalyzed . | . . . Part Schematics Acquired . | . . . Parts Damaged . | . . . Bothacking | -11 -10 -9 ------------ Run | Yrd Mat Mat Used RIF Installer . | . . . Robots Hacked . | . . . Non-combat . | . . . Combat . | . . . Robot Hacks Applied . | . . . Relay Couplers Released . | . . . Fabnet Peak Effective % . | . . . Robots Rewired . | . . . Allies Hacked . | . . . Hacks Repelled . | . . . Allies | -11 -10 -9 -------- Run | Yrd Mat Mat Total Allies . | . . . Largest Group . | . . . Highest-Rated Group . | . . . Highest-Rated Ally . | . . . Total Orders . | . . . Ally Attacks . | . . . Total Damage . | . . . Kills . | . . . Allies Corrupted . | . . . Allies Melted . | . . . Intel | -11 -10 -9 ------- Run | Yrd Mat Mat Robot Analysis Total . | . . . Derelict Logs Recovered . | . . . Drone Launches . | . . . Drone Recoveries . | . . . Exploration | -11 -10 -9 ------------- Run | Yrd Mat Mat Turns Passed 5025 | 3998 410 617 Spaces Moved 1854 | 1376 246 232 Core 23 | 7 . 16 Treads 1828 | 1369 246 213 Legs . | . . . Wheels 3 | . . 3 Hover . | . . . Flight . | . . . Fastest Speed 50 | 50 160 50 Average Speed 158 | 159 160 153 Slowest Speed 160 | 160 160 160 Overloaded Moves . | . . . Propulsion Burnouts . | . . . Robots Hopped . | . . . Cave-ins Triggered . | . . . Exploration Rate (%) 47 | 92 33 17 Regions Visited 2 Branch Regions . Pre-discovered Areas . | . . . Known Exits Taken 1 | . 1 . Unknown Exits Taken 1 | 1 . . Scrap Searched . | . . . Spaces Dug . | . . . Terrain Destroyed . | . . . Melee . | . . . Projectile . | . . . AOE . | . . . Terrain Rammed . | . . . Walls Destroyed . | . . . Machines Disabled . | . . . Actions | -11 -10 -9 --------- Run | Yrd Mat Mat Total 3808 | 3177 262 369 Wait 1795 | 1786 1 8 Move 1852 | 1375 245 232 Hop . | . . . Pick Up 20 | 5 5 10 Fast Attach 8 | 2 . 6 Attach 18 | 4 4 10 Detach 4 | . 3 1 Swap 6 | . 2 4 Drop 7 | 1 1 5 Fire 57 | . 1 56 Melee 19 | . . 19 Ram 8 | . . 8 Kick . | . . . Crush 14 | 4 . 10 Escape Stasis . | . . . Rewire . | . . . Trap . | . . . Miscellaneous . | . . . Route ------- -11/Scrapyard -10/Materials -9/Materials History --------- Turn | Location | Event 2 | -11/Scrapyard | Met Revision 17 4 | -11/Scrapyard | Discovered new exit (range 15) 3999 | -11/Scrapyard | Entered Materials 4000 | -10/Materials | Build established: Mutant 4243 | -10/Materials | Discovered new exit (range 18) 4268 | -10/Materials | Identified exit to Materials 4409 | -10/Materials | Entered another Materials area 4409 | -9/Materials | Evolved 2 slots: Propulsion x1, Utility x1 4648 | -9/Materials | Lost 7 parts (2p3n2w) 4960 | -9/Materials | Build established: Scavenger-Mutant 4981 | -9/Materials | Core integrity fell below 50% 5013 | -9/Materials | Core integrity fell below 20% 5026 | -9/Materials | Destroyed by G-34 Mercenary with Small Laser Last Messages --------------- 04987_ Core Shielding destroyed. 04987_ G-47 Trooper knocked back. 04992_ Lgt. Treads destroyed. Use the buttons at the bottom right of the parts list, or press c/e/w/q, to visualize various stats related to parts and inventory items. 05000_ Heat Sink destroyed. 05006_ Particle Gun destroyed. 05013_ G-47 Trooper suffers critical hit (Smash). 05013_ Destroyed Aluminum Leg. 05013_ G-47 Trooper system corrupted by crushing effect. 05016_ G-47 Trooper suffers critical hit (Smash). 05016_ Destroyed Particle Gun. 05016_ G-47 Trooper system corrupted by crushing effect. 05017_ G-47 Trooper system terminally corrupted. 05018_ Ion Engine destroyed. Map ----- +----------------------------------------------------+ | ?????????????????????????????????????? | | ?????????????????????? ????????????? | | ?????????????????????# ????????????? | | ?????????????????????# ????????????? | | ????????????????#????# ????????????? | | ????????????????# ???# #???????????? | | ????????????????# #### #???????????? | | ????????????????+ #???????????? | | ????????????????# #???????????? | | ????????????????# #???????????? | | ????????????????? #???????????? | | ??????????????????# #???????????? | | ????????? ????????# #???????????? | | ????????? ????????# #????????#### | | ????????? ????????# ########## | | ????????? ""????" + ! | | ????????? ""??????# [[ | | ????????? ""??????# % %% | | ????????? ??????# ########## [[ | | ????????? ??????# #????????## % | | ?????????#/#??????# ###########%% | | ########## #??????#% # # % | | # ## #??????# # += | | #"" ## #??????#* # # | | #"Y% ##r########% # #= | | #"" # %@ % m%% #########?# | | # # % g | | # + #######+### | | # # ## # | | # """ # ## """ #########+####### | | # """ ##### "T" #???????????????? | | # """ #???# #???????????????? | | # #??## ] #???????????????? | | #########??# ]/ [ #???????????????? | | ???????????## ]/ #???????????????? | | ????????????# #???????????????? | | ????????????# #???????????????? | | ????????????##########???????????????? | | ?????????????????????????????????????? | | ?????????????????????????????????????? | | ?????????????????????????????????????? | | ?????????????????????????????????????? | | ?????????????????????????????????????? | | | | | | | | | | | | | | | +----------------------------------------------------+ Best States ------------- Heat Dissipation 38 Energy Generation 10 Energy Capacity 250 Matter Stores 300 Matter Capacity 300 Sight Range 18 Terrain Scan Density 10 Additional Mass Support 6 Core Shielding 20 Evasion (%) 50 Recoil Reduction 3 Item Schematics ----------------- Lgt. Armor Plating | -10/Materials | Hacked Robot Schematics ------------------ None Fabricated ------------ Nothing Alien Tech Used ----------------- None Achievements -------------- Loot Pinata Power Corrupts Challenges ------------ None Game ------ Seed ModifiedMetafieldPerforator Manual? 0 Play Time 00:20:36 Cumulative 0.7 hours Start 2024.10.22 @ 14:32:26 End 2024.10.22 @ 14:52:18 Sessions 1 Manual Loads 0 Difficulty Rogue Special Mode None Game No. 3 Rogue 3 Adventurer 0 Explorer 0 Win Type - Total 0 Types 0/0/0/0/0/0/0/0/0 Lore% 0 Gallery% 3 Achievement% 4 Wizard Run 0 Options --------- Layout 1 ASCII 0 Keyboard 0 Movement Numpad Keybinds 0 Fullscreen 1 Font 24/Smallcaps Map View 50x35 Zoom Use 0% Tactical HUD 1 Map Filters NONE Filters NONE Steam 1 RUN: 049a7b8e-c88b-4ace-9fed-04c28b07b0ca